bitfinex-derivatives/quotes_ETHF0:USTF0_20250110
["timestamp","ask_amount","ask_price","bid_price","bid_amount"]
[1736498317950,0.4516,3292.1,3291.9,0.30378]
[1736498318255,0.75537,3292.1,3291.8,0.30379]
[1736498318457,0.30378,3292.0,3291.7,41.1038]
[1736498318652,0.4516,3292.1,3292.0,0.30378]
[1736498319051,0.4516,3292.1,3291.9,0.30378]
[1736498319265,0.4516,3292.1,3291.8,0.3038]
[1736498319550,0.4516,3292.1,3292.0,0.30378]
[1736498320547,0.9162,3292.3,3292.2,0.30376]
[1736498320854,0.9162,3292.3,3292.1,0.30376]
[1736498321258,0.9162,3292.3,3291.7,40.8]
[1736498321455,0.9162,3292.3,3292.0,0.30377]
[1736498321857,0.9162,3292.3,3292.1,0.30377]
[1736498322160,0.9162,3292.3,3291.7,40.8]
[1736498322459,0.9162,3292.3,3292.2,0.30376]
[1736498323561,0.4598,3292.3,3292.2,0.30376]
[1736498323758,0.4373,3292.5,3292.4,0.30374]
[1736498323957,0.4558,3292.9,3292.6,0.30372]
[1736498324258,0.4636,3292.8,3292.6,0.30372]
[1736498325764,0.4636,3292.8,3292.7,0.30371]
[1736498325957,0.4636,3292.8,3292.3,3.2078]
[1736498326258,0.4636,3292.8,3292.5,0.30373]
[1736498326463,0.76731,3292.8,3292.4,0.30373]
[1736498326659,0.4636,3292.8,3292.5,0.30373]
[1736498327264,0.76731,3292.8,3292.5,0.30373]
[1736498328159,0.76731,3292.8,3292.3,3.2078]
[1736498328353,0.4636,3292.8,3292.3,3.2078]
[1736498328549,0.4636,3292.8,3292.5,0.30372]
[1736498329760,0.4636,3292.8,3292.3,3.2078]
[1736498329962,0.4636,3292.8,3292.5,0.30373]
[1736498330761,0.7673,3292.8,3292.5,0.30373]
[1736498331061,0.7673,3292.8,3292.3,3.2078]
[1736498331062,0.4636,3292.8,3292.3,3.2078]
[1736498331263,0.30372,3292.6,3292.3,3.2078]
[1736498331462,0.30374,3292.4,3292.3,3.2078]
[1736498331663,0.30374,3292.4,3292.0,0.30377]
[1736498331857,1.3454,3292.3,3292.1,0.30376]
[1736498332967,1.3454,3292.3,3292.0,0.30377]
[1736498333165,1.3454,3292.3,3292.1,0.30377]
[1736498333866,1.3454,3292.3,3292.2,0.30376]
[1736498334459,1.3454,3292.3,3291.7,40.8]
[1736498334759,1.3454,3292.3,3292.1,0.30377]
[1736498335665,1.3454,3292.3,3292.2,0.30376]
[1736498336258,1.3454,3292.3,3291.7,40.8]
[1736498336661,1.3454,3292.3,3292.1,0.30376]
[1736498336962,1.3454,3292.3,3291.7,40.8]
[1736498337566,1.3454,3292.3,3292.1,0.30376]
[1736498337762,1.3454,3292.3,3292.2,0.30376]
[1736498339270,1.3454,3292.3,3292.1,0.30377]
[1736498339864,1.3454,3292.3,3292.2,0.30376]
[1736498342067,0.9015,3292.3,3292.2,0.30376]
[1736498342262,13.89373917,3292.7,3292.0,3.2078]
[1736498342468,13.89373917,3292.7,3292.6,0.30372]
[1736498342469,10.68593917,3292.7,3292.6,0.30372]
[1736498343269,0.8866,3293.0,3292.9,0.30369]
[1736498343480,0.8866,3293.0,3292.4,3.2078]
[1736498343672,0.8866,3293.0,3292.7,0.30371]
[1736498344174,0.8866,3293.0,3292.8,0.3037]
[1736498344469,0.8866,3293.0,3292.4,3.2078]
[1736498344675,0.8866,3293.0,3292.4,0.30373]
[1736498344870,0.30371,3292.7,3291.9,3.2078]
[1736498345076,3.2078,3292.7,3291.9,3.2078]
[1736498345270,1.279,3292.6,3291.5,3.2078]
[1736498345479,3.2078,3292.2,3291.5,3.2078]
[1736498345668,0.4681,3292.1,3291.8,0.30379]
[1736498345874,0.77187,3292.1,3291.5,3.2078]
[1736498346181,0.4505,3292.0,3291.5,3.2078]
[1736498346378,0.4422,3291.9,3291.5,3.2078]
[1736498346571,0.3038,3291.8,3291.5,3.2078]
[1736498346770,0.74599,3291.9,3291.5,3.51162]
[1736498347072,0.74599,3291.9,3291.5,3.2078]
[1736498347073,0.3038,3291.8,3291.5,3.2078]
[1736498349377,0.74599,3291.9,3291.5,3.51162]
[1736498349579,0.4422,3291.9,3291.8,0.3038]
[1736498350474,0.4505,3292.0,3291.5,3.2078]
[1736498350673,0.9278,3292.0,3291.9,0.30379]
[1736498353072,0.4681,3292.1,3291.5,3.2078]
[1736498353270,0.8979,3292.5,3291.5,3.2078]
[1736498353475,1.3595,3292.5,3292.3,0.30375]
[1736498354174,1.3595,3292.5,3291.7,0.75952]
[1736498354175,1.3595,3292.5,3292.4,0.30374]
[1736498355776,0.4616,3292.5,3292.4,0.30374]
[1736498356287,0.4724,3292.7,3292.6,0.30372]
[1736498356586,0.4428,3292.8,3292.6,0.30372]
[1736498356784,0.9059,3292.8,3292.6,0.30372]
[1736498357472,0.9059,3292.8,3292.0,3.2078]
[1736498357669,0.9059,3292.8,3292.5,0.30373]
[1736498357976,0.9059,3292.8,3292.0,3.2078]
[1736498358179,0.30371,3292.7,3292.0,3.2078]
[1736498358481,1.20961,3292.8,3292.4,0.30374]
[1736498359072,3.2078,3292.6,3292.0,3.2078]
[1736498359281,0.30374,3292.4,3292.0,0.30377]
[1736498359480,0.444,3292.3,3291.8,40.8]
[1736498359778,0.4737,3292.2,3292.1,0.30377]
[1736498359980,0.4737,3292.2,3291.8,40.8]
[1736498360179,0.4737,3292.2,3292.1,0.30377]
[1736498360680,3.2078,3292.6,3292.5,0.30373]
[1736498360881,1.3856,3292.9,3292.6,0.30372]
[1736498361075,0.30371,3292.7,3292.0,3.2078]
[1736498361280,0.30371,3292.8,3292.4,0.30373]
[1736498361882,1.3856,3292.9,3292.5,0.30373]
[1736498362083,1.3856,3292.9,3292.1,0.30377]
[1736498362282,1.3856,3292.9,3292.0,3.2078]
[1736498362481,1.3856,3292.9,3292.6,0.30371]
[1736498362977,1.3856,3292.9,3292.7,0.30371]
[1736498363289,10.68593917,3293.0,3292.9,0.30369]
[1736498364288,0.9083,3293.2,3293.0,0.30368]
[1736498364783,0.9083,3293.2,3292.4,3.2078]
[1736498365185,1.21197,3293.2,3292.8,0.3037]
[1736498365684,0.9083,3293.2,3292.5,0.30373]
[1736498365887,0.9083,3293.2,3292.4,3.2078]
[1736498366080,0.30369,3293.0,3292.6,0.30372]
[1736498366282,0.4675,3292.9,3292.7,0.30371]
[1736498367885,0.4675,3292.9,3292.4,3.2078]
[1736498368086,0.4675,3292.9,3292.8,0.3037]
[1736498368583,0.9083,3293.2,3292.9,0.30369]
[1736498368779,0.9083,3293.2,3292.8,0.3037]
[1736498368780,0.4662,3293.1,3292.8,0.3037]
[1736498369286,0.4662,3293.1,3292.9,0.30369]
[1736498369580,0.4662,3293.1,3292.8,41.1037]
[1736498369788,0.4662,3293.1,3292.9,0.30369]
[1736498370681,0.4662,3293.1,3292.8,40.8]
[1736498370886,0.4662,3293.1,3292.8,41.1037]
[1736498372688,0.4662,3293.1,3292.8,40.8]
[1736498372889,0.4662,3293.1,3292.9,0.30369]
[1736498373291,0.4662,3293.1,3292.8,40.8]
[1736498373486,0.4662,3293.1,3293.0,0.30368]
[1736498380094,0.9083,3293.2,3293.1,0.30368]
[1736498381590,0.4429,3293.2,3293.1,0.30368]
[1736498384199,0.4575,3293.5,3292.8,3.2078]
[1736498384494,0.9143,3293.5,3293.4,0.30365]
[1736498386300,13.13076009,3294.0,3293.8,0.3036]
[1736498386490,1.3102,3293.9,3293.8,0.3036]
[1736498388401,0.4419,3293.9,3293.8,0.3036]
[1736498388603,10.68593917,3294.3,3294.2,0.30357]
[1736498389598,10.68593917,3294.3,3294.2,41.10357]
[1736498390001,0.4419,3294.4,3294.3,0.30356]
[1736498394198,0.4419,3294.4,3294.1,3.2078]
[1736498394403,0.4419,3294.4,3293.9,0.3036]
[1736498394602,0.74546,3294.4,3293.9,0.3036]
[1736498394903,0.4419,3294.4,3293.8,0.30361]
[1736498395100,0.30357,3294.3,3293.8,0.30361]
[1736498395602,0.4362,3294.2,3293.9,0.3036]
[1736498395802,0.4671,3294.1,3293.9,0.3036]
[1736498396506,0.4671,3294.1,3293.9,0.30359]
[1736498396701,0.4419,3294.4,3294.3,0.30356]
[1736498396904,0.4419,3294.4,3294.1,0.30358]
[1736498397104,0.4419,3294.4,3293.7,3.2078]
[1736498397306,0.4419,3294.4,3294.3,0.30356]
[1736498397803,0.4419,3294.4,3294.2,0.30357]
[1736498398607,0.4419,3294.4,3294.3,0.30356]
[1736498400804,0.4419,3294.4,3294.3,41.10356]
[1736498401207,0.4419,3294.4,3294.3,40.8]
[1736498401502,0.30358,3294.2,3293.8,0.3036]
[1736498401704,0.30359,3294.1,3293.7,3.51142]
[1736498401911,0.467,3294.0,3293.8,0.30361]
[1736498402208,0.467,3294.0,3293.7,3.2078]
[1736498402409,0.467,3294.0,3293.9,0.3036]
[1736498403904,0.3036,3293.9,3293.7,3.2078]
[1736498404105,0.30364,3293.5,3293.4,2.201]
[1736498404411,0.30364,3293.5,3293.4,1.484]
[1736498404609,3.6662,3293.8,3293.0,40.8]
[1736498404803,3.2078,3293.3,3293.0,40.8]
[1736498405003,3.2078,3293.3,3292.6,3.2078]
[1736498405200,0.443,3293.4,3293.1,0.30367]
[1736498405808,0.443,3293.4,3292.7,40.8]
[1736498405809,0.443,3293.4,3293.2,0.30366]
[1736498406009,0.443,3293.4,3293.0,3.2078]
[1736498406411,0.443,3293.4,3293.3,0.30366]
[1736498406612,4.4688,3294.2,3293.1,2.24319]
[1736498406814,0.443,3294.1,3293.9,0.3036]
[1736498407013,0.443,3294.1,3293.2,0.75917]
[1736498407311,0.4579,3294.0,3293.9,0.3036]
[1736498407508,0.4579,3294.0,3293.7,3.2078]
[1736498407812,0.4579,3294.0,3293.9,0.3036]
[1736498408414,0.443,3294.1,3294.0,0.30359]
[1736498408709,0.4755,3294.6,3293.8,0.4643]
[1736498408907,0.9454,3294.6,3294.4,0.30355]
[1736498409111,0.9454,3294.6,3293.9,0.3036]
[1736498409306,0.9454,3294.6,3293.8,1.22333]
[1736498409307,0.9454,3294.6,3294.4,0.30355]
[1736498409710,0.9454,3294.6,3294.0,40.8]
[1736498410014,0.9454,3294.6,3294.4,0.30355]
[1736498410411,0.9454,3294.6,3294.3,0.30356]
[1736498411818,0.9454,3294.6,3294.4,0.30356]
[1736498412516,0.9454,3294.6,3294.3,0.30356]
[1736498413008,0.9454,3294.6,3294.2,3.2078]
[1736498413009,0.9454,3294.6,3294.5,0.30355]
[1736498413417,0.4332,3294.9,3294.6,0.30353]
[1736498413721,0.4332,3294.9,3294.2,3.2078]
[1736498414118,0.4332,3294.9,3294.6,0.30353]
[1736498414717,0.4332,3294.9,3294.2,3.2078]
[1736498415212,0.9225,3295.0,3294.8,0.30351]
[1736498415418,3.2078,3295.2,3294.9,0.3035]
[1736498415616,3.2078,3295.2,3294.8,0.30351]
[1736498415820,3.2078,3295.2,3294.2,3.2078]
[1736498416119,3.2078,3295.2,3294.9,0.30351]
[1736498416320,3.2078,3295.2,3295.0,0.3035]
[1736498416714,3.2078,3295.2,3295.1,0.30349]
[1736498416916,1.3647,3295.4,3295.1,0.30349]
[1736498417214,1.3647,3295.4,3294.8,3.2078]
[1736498417418,1.3647,3295.4,3295.0,0.30349]
[1736498420018,1.3647,3295.4,3294.8,3.2078]
[1736498420222,1.3647,3295.4,3295.0,0.3035]
[1736498420519,12.05063917,3295.4,3295.0,0.3035]
[1736498421114,12.05063917,3295.4,3294.8,3.2078]
[1736498421115,12.05063917,3295.4,3294.9,0.3035]
[1736498421421,12.35410917,3295.4,3294.9,0.3035]
[1736498421918,12.05063917,3295.4,3295.0,0.30349]
[1736498422718,12.05063917,3295.4,3295.1,0.30348]
[1736498422912,12.05063917,3295.4,3295.2,0.30348]
[1736498423118,11.15093917,3295.4,3294.8,3.2078]
[1736498423417,10.68593917,3295.4,3295.3,0.30347]
[1736498423617,10.68593917,3295.4,3295.3,44.31127]
[1736498425018,0.4688,3295.7,3295.6,0.30344]
[1736498429116,0.4688,3295.9,3295.8,0.30343]
[1736498430915,0.4303,3296.0,3295.9,0.30342]
[1736498431326,0.4405,3296.1,3295.7,3.2078]
[1736498431625,10.68593917,3296.2,3295.7,3.2078]
[1736498431626,10.68593917,3296.2,3296.1,0.3034]
[1736498432423,3.2078,3296.3,3295.8,0.888]
[1736498432618,3.2078,3296.3,3295.7,3.2078]
[1736498432822,3.2078,3296.3,3296.2,0.30339]
[1736498433623,3.2078,3296.3,3296.1,0.30339]
[1736498434126,3.2078,3296.3,3295.7,3.2078]
[1736498434329,3.2078,3296.3,3295.9,0.30342]
[1736498434625,3.2078,3296.3,3296.0,0.3034]
[1736498434823,0.8685,3296.5,3295.7,3.2078]
[1736498435526,0.8685,3296.5,3295.8,0.30343]
[1736498435727,0.8685,3296.5,3295.7,3.2078]
[1736498436331,0.8685,3296.5,3296.1,0.30339]
[1736498436626,0.8685,3296.5,3295.7,3.2078]
[1736498436627,1.17186,3296.5,3296.0,0.30341]
[1736498437027,0.8685,3296.5,3295.7,3.2078]
[1736498437424,0.8685,3296.5,3296.1,0.3034]
[1736498438328,0.8685,3296.5,3295.7,3.2078]
[1736498438529,0.8685,3296.5,3296.1,0.3034]
[1736498439325,4.0763,3296.5,3296.2,0.30339]
[1736498439823,4.0763,3296.5,3296.4,0.30337]
[1736498440130,0.8685,3296.5,3296.4,3.51117]
[1736498443230,0.8685,3296.5,3296.0,3.2078]
[1736498443424,0.8685,3296.5,3296.1,0.30339]
[1736498444521,0.8685,3296.5,3296.0,3.1778]
[1736498444720,0.8685,3296.5,3296.1,0.3034]
[1736498445324,0.8685,3296.5,3296.1,0.30339]
[1736498445934,0.8685,3296.5,3296.1,0.27339]
[1736498446436,1.17187,3296.5,3296.0,3.1778]
[1736498446631,3.2078,3296.3,3295.6,3.2078]
[1736498446834,3.2078,3295.7,3294.8,3.2078]
[1736498447134,1.3772,3295.6,3295.2,0.30348]
[1736498447731,1.3772,3295.6,3294.8,3.2078]
[1736498447932,4.585,3295.6,3294.8,3.2078]
[1736498448134,4.585,3295.6,3295.0,0.3035]
[1736498448135,0.30345,3295.5,3295.0,0.3035]
[1736498448435,4.585,3295.6,3294.8,3.2078]
[1736498448629,4.88845,3295.6,3294.8,3.2078]
[1736498448835,4.585,3295.6,3295.3,41.10347]
[1736498449136,1.3772,3295.6,3295.3,41.10347]
[1736498450238,1.3772,3295.6,3295.5,0.30345]
[1736498450437,1.3772,3295.6,3295.4,0.30346]
[1736498451330,1.3772,3295.6,3295.3,40.8]
[1736498451531,1.3772,3295.6,3295.3,41.10346]
[1736498451836,1.3772,3295.6,3295.4,0.30346]
[1736498452234,0.4572,3295.6,3295.5,0.30345]
[1736498455740,0.4572,3295.6,3295.4,0.30346]
[1736498455934,0.4572,3295.6,3295.3,42.254]
[1736498456138,0.76065,3295.6,3295.3,42.254]
[1736498456344,0.4572,3295.6,3295.3,1.454]
[1736498456541,3.665,3295.6,3295.3,1.454]
[1736498456743,0.30345,3295.5,3295.3,1.454]
[1736498457036,3.665,3295.6,3295.3,1.454]
[1736498457437,3.96845,3295.6,3295.3,1.454]
[1736498457942,3.665,3295.6,3295.3,1.454]
[1736498458137,0.4572,3295.6,3295.3,1.454]
[1736498458337,0.4572,3295.6,3295.5,0.30345]
[1736498458642,11.12583917,3295.9,3295.4,0.9057]
[1736498458946,11.12583917,3295.9,3295.6,0.30344]
[1736498459338,11.12583917,3295.9,3295.4,0.9057]
[1736498459743,0.4733,3295.8,3295.4,0.9057]
[1736498461043,0.4399,3295.9,3295.6,0.30344]
[1736498461245,0.4399,3295.9,3295.5,0.30345]
[1736498461441,0.4399,3295.9,3295.4,0.9057]
[1736498461648,0.4729,3295.8,3295.4,0.9057]
[1736498461845,0.4729,3295.8,3295.2,3.2078]
[1736498462241,0.4729,3295.8,3295.3,0.30347]
[1736498463044,0.4729,3295.8,3295.2,3.2078]
[1736498463249,0.77633,3295.8,3295.2,3.2078]
[1736498463446,3.2078,3295.6,3295.2,3.2078]
[1736498463748,0.4638,3295.5,3295.2,3.2078]
[1736498464550,0.4638,3295.5,3295.3,0.30347]
[1736498466847,0.4638,3295.5,3295.2,3.2078]
[1736498467145,0.4638,3295.5,3295.2,3.51128]
[1736498467346,0.4638,3295.5,3295.3,0.30347]
[1736498468452,0.4638,3295.5,3295.2,3.2078]
[1736498468653,0.4638,3295.5,3295.4,0.30346]
[1736498469750,0.4729,3295.8,3295.6,0.30344]
[1736498471254,0.4729,3295.8,3295.7,0.30344]
[1736498471454,0.9139,3295.9,3295.6,3.2078]
[1736498471644,0.9139,3295.9,3295.6,3.51124]
[1736498471849,0.9139,3295.9,3295.2,3.2078]
[1736498472347,1.21732,3295.9,3295.4,0.30346]
[1736498472553,0.30343,3295.8,3295.4,0.30346]
[1736498472755,1.21732,3295.9,3295.4,0.30346]
[1736498473856,0.9139,3295.9,3295.5,0.30345]
[1736498475855,0.9139,3295.9,3295.2,3.2078]
[1736498475856,0.30343,3295.8,3295.3,0.30347]
[1736498476157,0.9139,3295.9,3295.2,3.2078]
[1736498476353,1.21732,3295.9,3295.2,3.2078]
[1736498476656,0.9139,3295.9,3295.2,3.2078]
[1736498476859,0.9139,3295.9,3295.6,0.30344]
[1736498477355,0.9139,3295.9,3295.8,0.30343]
[1736498477654,0.9139,3295.9,3295.7,0.74973]
[1736498478851,0.9139,3295.9,3295.7,0.4463]
[1736498479052,0.9139,3295.9,3295.8,0.30343]
[1736498480051,0.4429,3296.1,3296.0,0.30341]
[1736498480256,0.9046,3296.3,3296.2,0.30339]
[1736498480659,0.9046,3296.3,3296.2,41.10339]
[1736498480849,0.9046,3296.3,3296.2,40.8]
[1736498481260,0.9046,3296.3,3296.0,0.30341]
[1736498481452,0.4714,3296.2,3296.0,0.30341]
[1736498481852,0.4714,3296.2,3296.1,40.8]
[1736498482256,0.4714,3296.2,3296.1,41.1034]
[1736498483659,0.4714,3296.2,3296.1,40.8]
[1736498484859,0.4714,3296.2,3296.1,0.3034]
[1736498499468,0.4714,3296.2,3295.9,3.2078]
[1736498499767,0.30343,3295.8,3295.5,0.30345]
[1736498499960,1.3668,3295.7,3295.2,3.2078]
[1736498500268,1.3668,3295.7,3295.3,40.8]
[1736498500667,1.3668,3295.7,3295.5,0.30345]
[1736498500867,1.3668,3295.7,3295.6,0.30344]
[1736498501071,1.3668,3295.7,3295.5,0.30345]
[1736498501366,1.3668,3295.7,3295.3,40.8]
[1736498501571,1.3668,3295.7,3295.6,0.30344]
[1736498502262,1.3668,3295.7,3295.3,40.8]
[1736498502466,1.3668,3295.7,3295.4,0.30346]
[1736498502666,1.3668,3295.7,3295.3,40.8]
[1736498502866,1.3668,3295.7,3295.6,0.30344]
[1736498503871,1.3668,3295.7,3295.5,0.30345]
[1736498504067,1.3668,3295.7,3295.4,0.30346]
[1736498504273,1.3668,3295.7,3295.5,0.30344]
[1736498507074,1.3668,3295.7,3295.3,40.8]
[1736498507374,1.3668,3295.7,3295.5,0.30345]
[1736498511364,1.3668,3295.7,3295.4,0.30346]
[1736498511875,1.3668,3295.7,3295.5,0.30345]
[1736498514575,1.3668,3295.7,3295.3,40.8]
[1736498514770,1.3668,3295.7,3295.6,0.30344]
[1736498514977,1.3668,3295.7,3295.5,0.30345]
[1736498515278,1.3668,3295.7,3295.4,0.30346]
[1736498515677,1.3668,3295.7,3295.5,0.30345]
[1736498518385,1.3668,3295.7,3295.6,0.30344]
[1736498518789,1.3668,3295.7,3295.3,40.8]
[1736498518990,1.3668,3295.7,3295.5,0.30345]
[1736498520091,1.3668,3295.7,3294.9,0.4669]
[1736498520092,3.2078,3295.6,3294.9,0.4669]
[1736498520293,0.30347,3295.4,3295.0,0.3035]
[1736498520891,3.2078,3295.6,3295.2,0.30348]
[1736498520892,0.30346,3295.5,3295.2,0.30348]
[1736498521286,0.30346,3295.5,3294.9,0.4669]
[1736498521287,1.3668,3295.7,3295.1,3.2078]
[1736498522093,1.3668,3295.7,3295.5,0.30345]
[1736498522491,1.3668,3295.7,3295.1,3.2078]
[1736498522700,1.3668,3295.7,3295.4,0.30346]
[1736498523605,1.3668,3295.7,3295.1,3.2078]
[1736498523798,1.3668,3295.7,3295.4,0.30346]
[1736498525087,1.3668,3295.7,3295.1,3.2078]
[1736498525297,1.3668,3295.7,3295.5,0.30345]
[1736498525696,1.3668,3295.7,3295.5,41.10345]
[1736498525891,1.67024,3295.7,3295.5,40.8]
[1736498526098,1.3668,3295.7,3295.5,40.8]
[1736498526292,1.3668,3295.7,3295.5,41.10345]
[1736498526498,1.3668,3295.7,3295.5,40.8]
[1736498526698,1.3668,3295.7,3295.5,0.30345]
[1736498527297,1.3668,3295.7,3295.4,0.30346]
[1736498527701,1.67024,3295.7,3295.4,0.30346]
[1736498528005,1.3668,3295.7,3295.4,0.30346]
[1736498529101,1.67024,3295.7,3295.3,0.30347]
[1736498530104,1.67024,3295.7,3295.2,40.8]
[1736498530498,1.67024,3295.7,3295.3,0.30347]
[1736498530895,1.67024,3295.7,3295.4,0.30346]
[1736498531092,0.30345,3295.6,3295.3,0.30347]
[1736498531299,1.3668,3295.7,3295.2,40.8]
[1736498531501,1.67024,3295.7,3295.1,3.2078]
[1736498532203,3.2078,3295.5,3295.1,3.2078]
[1736498532406,0.30348,3295.3,3294.7,3.2078]
[1736498532702,0.888,3295.2,3294.9,0.3035]
[1736498532905,1.3416,3295.2,3294.9,0.3035]
[1736498533105,1.3416,3295.2,3294.7,44.0078]
[1736498533307,1.3416,3295.2,3295.0,0.3035]
[1736498533500,1.3416,3295.2,3295.1,0.30349]
[1736498534102,1.3416,3295.2,3295.0,0.3035]
[1736498535003,1.3416,3295.2,3295.0,0.30349]
[1736498535404,1.3416,3295.2,3294.7,44.0078]
[1736498535704,1.3416,3295.2,3295.1,0.30349]
[1736498536106,1.3416,3295.2,3294.9,0.3035]
[1736498536304,1.3416,3295.2,3295.0,0.3035]
[1736498537000,1.3416,3295.2,3294.9,0.30351]
[1736498537196,1.3416,3295.2,3295.0,0.3035]
[1736498538203,1.3416,3295.2,3294.7,44.0078]
[1736498538404,1.3416,3295.2,3294.9,0.30351]
[1736498538806,1.3416,3295.2,3294.7,44.0078]
[1736498539000,1.3416,3295.2,3295.1,0.30349]
[1736498539909,1.3416,3295.2,3295.0,0.30349]
[1736498540108,1.3416,3295.2,3295.1,0.30349]
[1736498540408,1.3416,3295.2,3295.0,0.3035]
[1736498541203,1.3416,3295.2,3294.7,44.0078]
[1736498541511,1.3416,3295.2,3295.1,0.30349]
[1736498542111,1.3416,3295.2,3295.0,0.30349]
[1736498542710,1.3416,3295.2,3295.1,0.30349]
[1736498544410,1.3416,3295.2,3295.0,0.30349]
[1736498545007,1.3416,3295.2,3294.8,3.2078]
[1736498545209,1.3416,3295.2,3294.3,0.30356]
[1736498545210,0.30352,3294.8,3294.3,0.30356]
[1736498545510,0.30353,3294.7,3294.3,0.30356]
[1736498545710,0.9185,3294.6,3294.4,40.8]
[1736498546712,0.9185,3294.6,3294.4,41.10355]
[1736498546906,0.9185,3294.6,3294.4,40.8]
[1736498548209,0.9185,3294.6,3294.4,0.30355]
[1736498548411,0.9185,3294.6,3294.3,0.30356]
[1736498548714,0.9185,3294.6,3294.4,0.30355]
[1736498548909,0.9185,3294.6,3294.1,44.82686408]
[1736498549112,10.68593917,3295.1,3294.4,3.2078]
[1736498549317,10.68593917,3295.1,3295.0,0.3035]
[1736498549615,10.68593917,3295.1,3294.4,3.2078]
[1736498549914,10.68593917,3295.1,3294.5,40.8]
[1736498550112,0.30351,3294.9,3294.5,0.30354]
[1736498550513,0.4599,3294.8,3294.5,0.30354]
[1736498550914,0.4308,3294.7,3294.5,0.30354]
[1736498551117,0.4742,3294.6,3294.5,0.30354]
[1736498554419,0.4742,3294.6,3294.4,44.31135]
[1736498554714,0.4742,3294.6,3294.4,44.0078]
[1736498555023,0.4742,3294.6,3294.5,0.30355]
[1736498555414,0.4742,3294.6,3294.4,44.0078]
[1736498555615,0.4742,3294.6,3294.4,44.31135]
[1736498555916,0.4742,3294.6,3294.4,44.0078]
[1736498556220,0.4742,3294.6,3294.5,0.30355]
[1736498558920,0.4742,3294.6,3294.4,44.31135]
[1736498559120,0.4742,3294.6,3294.5,0.30355]
[1736498564420,0.4599,3294.8,3294.4,44.0078]
[1736498564620,0.3035,3295.1,3294.8,0.30351]
[1736498564621,0.9247,3295.1,3294.8,0.30351]
[1736498564824,0.4761,3295.0,3294.8,0.30351]
[1736498565020,0.4761,3295.0,3294.5,0.9168]
[1736498565216,0.4761,3295.0,3294.9,0.30351]
[1736498566717,10.68593917,3295.3,3294.8,3.2078]
[1736498566920,10.68593917,3295.3,3295.2,0.30348]
[1736498567520,0.9092,3295.4,3295.2,0.30348]
[1736498568115,0.9092,3295.4,3294.8,3.2078]
[1736498568317,0.9092,3295.4,3295.1,0.30349]
[1736498570026,0.9092,3295.4,3294.8,3.2078]
[1736498570229,4.117,3295.4,3294.8,3.2078]
[1736498570427,0.3035,3295.1,3294.8,3.2078]
[1736498571220,4.117,3295.4,3294.8,3.2078]
[1736498571518,0.30349,3295.1,3294.8,3.2078]
[1736498572431,0.30347,3295.3,3294.8,3.51132]
[1736498572727,4.117,3295.4,3294.8,3.51132]
[1736498572728,0.30349,3295.2,3294.8,3.51132]
[1736498572927,0.30349,3295.1,3294.8,3.51132]
[1736498573425,0.30349,3295.2,3294.9,0.30351]
[1736498573623,0.30349,3295.1,3294.8,3.51131]
[1736498575332,0.30349,3295.1,3294.8,3.2078]
[1736498575525,0.30349,3295.1,3294.9,0.30351]
[1736498575727,0.30349,3295.1,3294.8,3.51131]
[1736498576030,0.30349,3295.1,3294.9,0.30351]
[1736498576226,0.30349,3295.2,3294.9,0.30351]
[1736498576427,4.117,3295.4,3295.1,0.30349]
[1736498576625,0.30347,3295.3,3295.1,0.30349]
[1736498576832,0.30348,3295.2,3294.9,0.30351]
[1736498577133,0.30348,3295.2,3294.8,3.2078]
[1736498577327,0.30348,3295.2,3294.6,40.8]
[1736498577527,0.30348,3295.2,3294.7,0.30353]
[1736498577729,0.30348,3295.2,3294.9,0.3035]
[1736498578932,14.80293917,3295.4,3294.6,40.8]
[1736498579531,15.10640917,3295.4,3295.1,0.30349]
[1736498580328,15.10640917,3295.4,3294.7,0.4735]
[1736498580532,15.10640917,3295.4,3295.2,0.30348]
[1736498580932,0.30347,3295.3,3295.1,0.30349]
[1736498581332,0.30349,3295.2,3294.9,0.3035]
[1736498581528,0.3035,3295.0,3294.8,0.30352]
[1736498581723,0.9018,3294.9,3294.6,40.8]
[1736498581925,4.5486,3294.9,3294.5,0.30354]
[1736498582121,4.5486,3294.9,3294.2,0.4328]
[1736498582328,0.30357,3294.3,3294.0,41.10359]
[1736498582538,1.258,3294.8,3294.0,41.10359]
[1736498582539,1.3408,3294.2,3294.0,40.8]
[1736498582730,1.3408,3294.2,3293.8,3.2078]
[1736498582929,1.3408,3294.2,3293.6,7.07598984]
[1736498582930,1.3408,3294.2,3293.4,0.4328]
[1736498583135,0.30361,3293.9,3293.5,0.30364]
[1736498583431,0.30361,3293.8,3293.5,40.8]
[1736498583633,3.2078,3294.1,3293.5,40.8]
[1736498583934,0.30362,3293.7,3293.5,40.8]
[1736498584132,1.3119,3293.6,3293.5,40.8]
[1736498584334,1.61553,3293.6,3293.5,40.8]
[1736498584537,1.3119,3293.6,3293.5,40.8]
[1736498586434,1.61553,3293.6,3293.2,3.2078]
[1736498586637,1.3119,3293.6,3293.2,3.2078]
[1736498586940,1.3119,3293.6,3293.3,40.8]
[1736498587931,1.61553,3293.6,3293.3,40.8]
[1736498588733,1.3119,3293.6,3293.3,40.8]
[1736498589039,1.61553,3293.6,3293.3,40.8]
[1736498589235,1.3119,3293.6,3293.3,40.8]